fUSD/lending_fUSD_20260121
["ID","MTS","AMOUNT","RATE_DAILY","PERIOD"]
[402935199,1768996238970,-416.0,0.00017022,2]
[402935202,1768996238983,-500.0,0.00017022,2]
[402935204,1768996238994,-500.0,0.00017022,2]
[402935206,1768996239004,-500.0,0.00017022,2]
[402935208,1768996239014,-500.0,0.00017022,2]
[402935210,1768996239024,-1392.0,0.00017027,2]
[402935212,1768996239034,-166.66,0.00017032,2]
[402935214,1768996239044,-500.0,0.00017046,2]
[402935216,1768996239054,-500.0,0.00017046,2]
[402935218,1768996239064,-155.03086821,0.00017046,2]
[402935220,1768996239074,-150.0,0.00017046,2]
[402935222,1768996239085,-1426.0,0.0001706,2]
[402935224,1768996239095,-416.0,0.00017077,2]
[402935226,1768996239105,-500.0,0.00017077,2]
[402935228,1768996239116,-500.0,0.00017077,2]
[402935230,1768996239126,-500.0,0.00017077,2]
[402935232,1768996239136,-500.0,0.00017077,2]
[402935234,1768996239146,-153.53248348,0.00017101,2]
[402935236,1768996239156,-500.0,0.00017101,2]
[402935238,1768996239166,-150.0,0.00017101,2]
[402935240,1768996239176,-1977.14832793,0.00017106,2]
[402935242,1768996239186,-5217.72571894,0.00017106,2]
[402935244,1768996239195,-9204.686645,0.00017106,2]
[402935246,1768996239205,-13769.66072477,0.00017106,2]
[402935248,1768996239215,-18630.8397,0.00017106,2]
[402935250,1768996239225,-278.92,0.00017118,2]
[402935252,1768996239234,-8518.68030326,0.00017129,2]
[402935254,1768996239244,-14571.84497382,0.00017129,2]
[402935256,1768996239254,-416.0,0.00017132,2]
[402935258,1768996239266,-500.0,0.00017132,2]
[402935260,1768996239275,-500.0,0.00017132,2]
[402935262,1768996239285,-500.0,0.00017132,2]
[402935264,1768996239294,-500.0,0.00017132,2]
[402935267,1768996239304,-156.8,0.00017135,2]
[402935268,1768996239313,-500.0,0.00017156,2]
[402935270,1768996239323,-182.27113961,0.00017156,2]
[402935272,1768996239333,-500.0,0.00017159,2]
[402935274,1768996239343,-910.88,0.00017159,2]
[402935277,1768996239352,-416.0,0.00017187,2]
[402935279,1768996239362,-500.00000017,0.00017187,2]
[402935280,1768996239371,-500.0,0.00017187,2]
[402935282,1768996239380,-500.0,0.00017187,2]
[402935284,1768996239390,-500.0,0.00017187,2]
[402935286,1768996239399,-324.92591646,0.00017206,2]
[402935288,1768996239408,-500.0,0.00017211,2]
[402935290,1768996239417,-416.0,0.00017241,2]
[402935292,1768996239427,-500.0,0.00017241,2]
[402935294,1768996239436,-389.65716214,0.00017241,2]
[402935296,1768996239446,-500.0,0.00017241,2]
[402935298,1768996239455,-500.0,0.00017266,2]
[402935300,1768996239464,-8518.68030326,0.00017283,2]
[402935302,1768996239474,-14571.84497382,0.00017283,2]
[402935304,1768996239483,-416.0,0.00017296,2]
[402935306,1768996239492,-500.0,0.00017296,2]
[402935308,1768996239501,-500.0,0.00017296,2]
[402935310,1768996239511,-500.0,0.0001732,2]
[402935313,1768996239521,-1000.0,0.00017321,2]
[402935314,1768996239531,-581.80673396,0.00017321,2]
[402935316,1768996239540,-1000.0,0.00017321,2]
[402935318,1768996239550,-500.0,0.00017321,2]
[402935320,1768996239559,-1000.0,0.00017321,2]
[402935322,1768996239568,-438.72320823,0.00017321,2]
[402935324,1768996239577,-416.0,0.00017351,2]
[402935326,1768996239586,-500.0,0.00017351,2]
[402935328,1768996239595,-500.0,0.00017351,2]
[402935330,1768996239607,-423.09968062,0.00017375,2]
[402935332,1768996239616,-416.0,0.00017406,2]
[402935334,1768996239625,-500.0,0.00017406,2]
[402935335,1768996239634,-500.0,0.00017406,2]
[402935336,1768996239644,-151.0,0.00017407,2]
[402935337,1768996239653,-1395.0,0.00017419,2]
[402935338,1768996239662,-309.42998015,0.00017433,2]
[402935339,1768996239671,-910.88,0.00017433,2]
[402935340,1768996239680,-324.92591646,0.00017437,2]
[402935341,1768996239690,-8518.68030326,0.00017437,2]
[402935342,1768996239699,-14571.84497382,0.00017437,2]
[402935343,1768996239708,-992.24,0.00017452,2]
[402935344,1768996239717,-416.0,0.00017461,2]
[402935345,1768996239725,-500.0,0.00017461,2]
[402935346,1768996239735,-500.0,0.00017469,2]
[402935347,1768996239748,-500.0,0.00017469,2]
[402935348,1768996239758,-500.0,0.00017469,2]
[402935349,1768996239768,-500.0,0.00017469,2]
[402935351,1768996239778,-500.0,0.00017469,2]
[402935354,1768996239787,-500.0,0.00017469,2]
[402935356,1768996239797,-416.0,0.00017515,2]
[402935358,1768996239806,-500.0,0.00017515,2]
[402935360,1768996239815,-433.14817424,0.00017525,2]
[402935362,1768996239825,-416.0,0.0001757,2]
[402935364,1768996239835,-236.00080963,0.0001757,2]
[402935366,1768996239845,-8518.68030326,0.00017592,2]
[402935368,1768996239854,-14571.84497382,0.00017592,2]
[402935371,1768996239868,-416.0,0.00017625,2]
[402935372,1768996239878,-7622.11249316,0.0001764,2]
[402935375,1768996239889,-324.92591646,0.00017669,2]
[402935376,1768996239899,-416.0,0.0001768,2]
[402935379,1768996239910,-1000.0,0.000177,2]
[402935380,1768996239921,-910.88,0.00017707,2]
[402935382,1768996239930,-500.0,0.00017721,2]
[402935384,1768996239941,-500.0,0.00017721,2]
[402935386,1768996239951,-150.0,0.00017725,2]
[402935389,1768996239960,-230.04153291,0.00017725,2]
[402935391,1768996239970,-161.95810683,0.00017725,2]
[402935393,1768996239979,-150.0,0.00017725,2]
[402935395,1768996239988,-150.0,0.00017725,2]
[402935397,1768996239997,-150.0,0.00017725,2]
[402935399,1768996240007,-416.0,0.00017735,2]
[402935401,1768996240016,-8518.68030326,0.00017746,2]
[402935403,1768996240025,-14571.84497382,0.00017746,2]
[402935405,1768996240034,-5237.20489654,0.00017758,2]
[402935407,1768996240044,-150.00637398,0.00017759,2]
[402935409,1768996240053,-150.0,0.0001778,2]
[402935411,1768996240062,-150.0,0.0001778,2]
[402935413,1768996240071,-150.0,0.0001778,2]
[402935414,1768996240080,-150.0,0.0001778,2]
[402935415,1768996240090,-416.0,0.00017789,2]
[402935416,1768996240099,-534.13337632,0.0001779,2]
[402935417,1768996240109,-500.0,0.0001779,2]
[402935419,1768996240118,-500.0,0.0001779,2]
[402935420,1768996240127,-500.0,0.0001779,2]
[402935421,1768996240136,-500.0,0.0001779,2]
[402935422,1768996240146,-1000.0,0.000178,2]
[402935423,1768996240156,-1406.0,0.00017808,2]
[402935424,1768996240165,-500.0,0.00017824,2]
[402935425,1768996240175,-500.0,0.00017829,2]
[402935426,1768996240184,-161.18999075,0.00017835,2]
[402935427,1768996240195,-161.47767001,0.00017835,2]
[402935428,1768996240204,-150.0,0.00017835,2]
[402935429,1768996240213,-150.0,0.00017835,2]
[402935431,1768996240222,-416.0,0.00017844,2]
[402935432,1768996240231,-1500.0,0.00017868,2]
[402935433,1768996240241,-570.67630539,0.00017868,2]
[402935434,1768996240250,-150.0,0.00017889,2]
[402935435,1768996240260,-187.0926832,0.00017889,2]
[402935436,1768996240269,-416.0,0.00017899,2]
[402935437,1768996240278,-248.64134578,0.00017899,2]
[402935438,1768996240287,-523.75764328,0.00017899,2]
[402935439,1768996240296,-500.0,0.00017899,2]
[402935440,1768996240306,-512.94511846,0.00017899,2]
[402935441,1768996240315,-421.9844121,0.00017899,2]
[402935442,1768996240325,-525.49738681,0.00017899,2]
[402935443,1768996240334,-500.0,0.00017899,2]
[402935444,1768996240344,-500.0,0.00017899,2]
[402935445,1768996240353,-352.32557945,0.00017899,2]
[402935446,1768996240362,-324.92591646,0.000179,2]
[402935447,1768996240371,-25542.716,0.000179,2]
[402935448,1768996240380,-10000.0,0.000179,2]
[402935449,1768996240390,-25000.0,0.000179,3]
[402935450,1768996240399,-500.0,0.000179,2]
[402935451,1768996240409,-7644.42124384,0.000179,3]
[402935452,1768996240418,-8518.68030326,0.000179,2]
[402935453,1768996240427,-14571.84497382,0.000179,2]
[402935454,1768996240435,-862.39790705,0.000179,2]
[402935455,1768996240444,-250.00005406,0.000179,2]
[402935456,1768996240454,-2087.39455293,0.000179,2]
[402935457,1768996240462,-500.0,0.000179,2]
[402935458,1768996240471,-500.0,0.000179,2]
[402935459,1768996240480,-500.0,0.000179,2]
[402935460,1768996240489,-500.0,0.000179,2]
[402935461,1768996240499,-500.0,0.000179,2]
[402935462,1768996240513,-500.0,0.000179,2]
[402935463,1768996240522,-500.0,0.000179,2]
[402935464,1768996240531,-500.0,0.000179,2]
[402935465,1768996240540,-500.0,0.000179,2]
[402935466,1768996240550,-500.0,0.000179,2]
[402935467,1768996240559,-500.0,0.000179,2]
[402935468,1768996240568,-500.0,0.000179,2]
[402935469,1768996240577,-500.0,0.000179,2]
[402935470,1768996240586,-500.0,0.000179,2]
[402935471,1768996240595,-500.0,0.000179,2]
[402935472,1768996240606,-500.0,0.000179,2]
[402935473,1768996240615,-500.0,0.000179,2]
[402935474,1768996240624,-500.0,0.000179,2]
[402935475,1768996240633,-500.0,0.000179,2]
[402935476,1768996240642,-500.0,0.000179,2]
[402935477,1768996240652,-500.0,0.000179,2]
[402935478,1768996240661,-500.0,0.000179,2]
[402935479,1768996240670,-500.0,0.000179,2]
[402935480,1768996240679,-500.0,0.000179,2]
[402935481,1768996240688,-500.0,0.000179,2]
[402935482,1768996240697,-500.0,0.000179,2]
[402935483,1768996240708,-500.0,0.000179,2]
[402935484,1768996240718,-500.0,0.000179,2]
[402935485,1768996240728,-500.0,0.000179,2]
[402935486,1768996240737,-500.0,0.000179,2]
[402935487,1768996240746,-10161.0,0.000179,2]
[402935488,1768996240755,-500.0,0.00017932,2]
[402935489,1768996240764,-150.40921962,0.00017944,2]
[402935490,1768996240773,-416.0,0.00017954,2]
[402935491,1768996240782,-151.0,0.00017955,2]
[402935492,1768996240791,-1395.0,0.00017957,2]
[402935493,1768996240800,-1000.0,0.0001797,2]
[402935494,1768996240809,-500.0,0.0001797,2]
[402935495,1768996240818,-1000.0,0.0001797,2]
[402935496,1768996240827,-694.631145,0.0001797,2]
[402935497,1768996240836,-1321.57411122,0.0001797,2]
[402935498,1768996240846,-15055.0,0.00017973,2]
[402935499,1768996240855,-30553.0,0.00017973,2]
[402935500,1768996240867,-500.0,0.00017973,2]
[402935501,1768996240877,-257.99612183,0.00017973,2]
[402935502,1768996240888,-550.70733566,0.00017973,2]
[402935503,1768996240898,-500.0,0.00017973,2]
[402935504,1768996240910,-500.0,0.00017973,2]
[402935505,1768996240921,-500.0,0.00017973,2]
[402935506,1768996240932,-500.0,0.00017973,2]
[402935507,1768996240941,-500.0,0.00017973,2]
[402935508,1768996240950,-500.0,0.00017973,2]
[402935509,1768996240959,-500.15189466,0.00017973,2]
[402935510,1768996240968,-159.96427776,0.00017973,2]
[402935511,1768996240977,-150.0,0.00017973,2]
[402935512,1768996240987,-500.79549494,0.00017973,2]
[402935513,1768996240996,-500.12560695,0.00017973,2]
[402935514,1768996241005,-586.66357325,0.00017973,2]
[402935515,1768996241015,-500.0,0.00017973,2]
[402935516,1768996241023,-500.0,0.00017973,2]
[402935517,1768996241033,-500.0,0.00017973,2]
[402935518,1768996241042,-500.0,0.00017973,2]
[402935519,1768996241052,-500.0,0.00017973,2]
[402935520,1768996241062,-150.0,0.00017973,2]
[402935521,1768996241071,-910.88,0.00017981,2]
[402935522,1768996241080,-500.0,0.00017982,2]
[402935523,1768996241089,-305.22366862,0.0001799,2]
[402935524,1768996241098,-305.22366862,0.0001799,2]
[402935525,1768996241108,-305.22366862,0.0001799,2]
[402935526,1768996241117,-151.0,0.00017997,2]
[402935527,1768996241126,-300.0,0.00017999,2]
[402935528,1768996241135,-666.0,0.00017999,2]
[402935529,1768996241145,-300.0,0.00017999,2]
[402935530,1768996241154,-500.0,0.00017999,2]
[402935531,1768996241164,-500.0,0.00017999,2]
[402935532,1768996241173,-500.0,0.00017999,2]
[402935533,1768996241182,-500.0,0.00017999,2]
[402935534,1768996241191,-500.0,0.00017999,2]
[402935535,1768996241200,-352.34,0.00017999,2]
[402935536,1768996241210,-300.0,0.00017999,2]
[402935537,1768996241219,-666.0,0.00017999,2]
[402935538,1768996241228,-374.17567263,0.00017999,2]
[402935539,1768996241237,-300.0,0.00017999,2]
[402935540,1768996241247,-300.0,0.00017999,2]
[402935541,1768996241257,-666.0,0.00017999,2]
[402935542,1768996241266,-300.0,0.00017999,2]
[402935543,1768996241279,-666.0,0.00017999,2]
[402935544,1768996241289,-3518867.19047068,0.00018,2]
[402935545,1768996241366,-799.11264715,0.000179,2]
[402935546,1768996241377,-3675.55343455,0.000179,2]
[402935547,1768996241387,-6574.37327129,0.00018,2]
[402935548,1768996241399,-72689.84712657,0.00018,2]
[402935549,1768996241412,-10330.8584515,0.00018,2]
[402935550,1768996241437,-550.60086084,0.00018,2]
[402935551,1768996241448,-346.29159958,0.00018,2]
[402935552,1768996242006,-1.7e-07,0.00018,2]
[402935553,1768996242018,-514.63245535,0.00018,2]
[402935563,1768996242766,-867633.32998442,0.00018,2]
[402935564,1768996242775,-258014.08449417,0.00018,2]
[402935565,1768996242785,-344.31000005,0.00018,2]
[402935566,1768996242794,-829654.5363628,0.00018,2]
[402935567,1768996242807,-4335132.35391935,0.00018,2]
[402935568,1768996242816,-8975063.59165715,0.00018,2]
[402935570,1768996245890,-3422.87,0.00018,2]
[402935571,1768996398259,-500.0,0.00016566,2]
[402935572,1768996400001,374.92850645,0.00016673,2]
[402935573,1768996403231,500.0,0.00016566,2]
[402935574,1768996412652,359.98096521,0.00016611,2]
[402935575,1768996416016,278.50792842,0.00016673,2]
[402935576,1768996431582,8861.52110637,0.00016673,2]
[402935577,1768996432000,4856.54135094,0.00016673,2]
[402935578,1768996442774,300.0,0.00016706,2]
[402935579,1768996452451,500.0,0.00016611,2]
[402935580,1768996453372,240.0,0.00016706,2]
[402935581,1768996500412,458.02,0.00013903,2]
[402935582,1768996562103,177.05,0.00016367,2]
[402935583,1768996563304,691.78,0.00016367,2]
[402935584,1768996697112,329.03,0.00016165,2]
[402935585,1768996742605,975.3,0.000227,120]
[402935595,1768997432006,-294.64,0.00016431,2]
[402935596,1768997432019,-801.84979979,0.00016431,2]
[402935597,1768997432058,-103.51020021,0.00016431,2]
[402935598,1768997432068,-150.0,0.00016432,2]
[402935599,1768997432078,-500.0,0.00016432,2]
[402935600,1768997432091,-162.83588015,0.00016432,2]
[402935601,1768997432101,-150.0,0.00016432,2]
[402935602,1768997432111,-500.0,0.00016432,2]
[402935604,1768997432120,-150.0,0.00016432,2]
[402935606,1768997432129,-230.04153291,0.00016432,2]
[402935608,1768997432139,-161.95810683,0.00016432,2]
[402935610,1768997432148,-150.0,0.00016432,2]
[402935612,1768997432157,-500.0,0.00016432,2]
[402935614,1768997432166,-500.0,0.00016432,2]
[402935616,1768997432177,-500.0,0.00016432,2]
[402935618,1768997432186,-500.0,0.00016432,2]
[402935620,1768997432195,-150.0,0.00016432,2]
[402935622,1768997432205,-416.0,0.00016432,2]
[402935624,1768997432216,-500.0,0.00016432,2]
[402935626,1768997432227,-500.0,0.00016432,2]
[402935628,1768997432236,-500.0,0.00016432,2]
[402935630,1768997432246,-1406.0,0.00016438,2]
[402935632,1768997432255,-195.04713981,0.00016442,2]
[402935634,1768997432266,-249.95233764,0.00016442,2]
[402935637,1768997432275,-150.0,0.00016487,2]
[402935638,1768997432286,-500.0,0.00016487,2]
[402935642,1768997432296,-90.85480244,0.00016487,2]
[402935754,1768997438021,-409.14519756,0.00016487,2]
[402935755,1768997438031,-150.0,0.00016487,2]
[402935756,1768997438041,-150.0,0.00016487,2]
[402935757,1768997438050,-289.85480244,0.00016487,2]
[402935758,1768997438076,-210.14519756,0.00016487,2]
[402935759,1768997438085,-500.0,0.00016487,2]
[402935760,1768997438096,-597.17918995,0.00016487,2]
[402935761,1768997438105,-492.67561249,0.00016487,2]
[402935762,1768997438132,-7.32438751,0.00016487,2]
[402935763,1768997438141,-150.0,0.00016487,2]
[402935764,1768997438150,-416.0,0.00016487,2]
[402935765,1768997438159,-500.0,0.00016487,2]
[402935766,1768997438168,-500.0,0.00016487,2]
[402935767,1768997438177,-500.0,0.00016487,2]
[402935768,1768997438187,-169.86649095,0.00016502,2]
[402935769,1768997438198,-446.41073624,0.00016502,2]
[402935770,1768997438207,-246.0,0.0001653,2]
[402935771,1768997438218,-36.96892584,0.0001653,2]
[402935772,1768997438231,-463.03107416,0.0001653,2]
[402935773,1768997438240,-500.0,0.0001653,2]
[402935774,1768997438250,-500.0,0.0001653,2]
[402935775,1768997438259,-500.0,0.0001653,2]
[402935776,1768997438273,-150.0,0.0001653,2]
[402935777,1768997438282,-801.08657512,0.00016531,2]
[402935778,1768997438297,-707.0144091,0.00016531,2]
[402935779,1768997438308,-1640.82419868,0.00016531,2]
[402935780,1768997438319,-996851.0748171,0.00016531,2]
[402935781,1768997438328,-161.18999075,0.00016542,2]
[402935782,1768997438338,-500.0,0.00016542,2]
[402935783,1768997438347,-500.0,0.00016542,2]
[402935785,1768997438357,-150.0,0.00016542,2]
[402935787,1768997438366,-158.4322296,0.00016542,2]
[402935789,1768997438376,-500.0,0.00016542,2]
[402935791,1768997438386,-304.75207679,0.00016542,2]
[402935793,1768997438395,-500.0,0.00016542,2]
[402935795,1768997438404,-161.47767001,0.00016542,2]
[402935797,1768997438413,-416.0,0.00016542,2]
[402935799,1768997438423,-500.0,0.00016542,2]
[402935801,1768997438432,-500.0,0.00016542,2]
[402935803,1768997438441,-341.31290121,0.00016542,2]
[402935805,1768997438451,-167.6921,0.00016566,2]
[402935807,1768997438460,-500.0,0.00016566,2]
[402935809,1768997438469,-150.00908155,0.00016593,2]
[402935811,1768997438478,-500.0,0.00016596,2]
[402935813,1768997438488,-500.0,0.00016596,2]
[402935816,1768997438498,-205.80435828,0.00016596,2]
[402935817,1768997438507,-500.0,0.00016596,2]
[402935819,1768997438517,-500.0,0.00016596,2]
[402935821,1768997438527,-416.0,0.00016596,2]
[402935824,1768997438541,-415.0,0.00016596,2]
[402935826,1768997438550,-177.0,0.00016596,2]
[402935828,1768997438559,-2500.0,0.00016607,2]
[402935830,1768997438568,-6715.4939,0.00016607,2]
[402935832,1768997438577,-500.0,0.00016611,2]
[402935834,1768997438588,-500.0,0.00016611,2]
[402935836,1768997438597,-534.13337632,0.00016611,2]
[402935838,1768997438606,-500.0,0.00016611,2]
[402935839,1768997438615,-500.0,0.00016611,2]
[402935841,1768997438625,-500.0,0.00016611,2]
[402935843,1768997438634,-500.0,0.00016611,2]
[402935845,1768997438644,-2287.348,0.00016631,2]
[402935847,1768997438654,-206.736,0.00016631,2]
[402935849,1768997438664,-7790.52933416,0.00016631,2]
[402935852,1768997438673,-13164.25701078,0.00016631,2]
[402935853,1768997438682,-195.04713978,0.0001665,2]
[402935856,1768997438692,-500.0,0.00016651,2]
[402935858,1768997438701,-500.0,0.00016651,2]
[402935860,1768997438710,-500.0,0.00016651,2]
[402935862,1768997438720,-500.0,0.00016651,2]
[402935863,1768997438730,-416.0,0.00016651,2]
[402935865,1768997438740,-500.0,0.00016697,2]
[402935868,1768997438750,-243.57931379,0.00016697,2]
[402935870,1768997438759,-500.0,0.00016705,2]
[402935872,1768997438768,-500.0,0.00016705,2]
[402935873,1768997438777,-500.0,0.00016705,2]
[402935874,1768997438786,-500.0,0.00016705,2]
[402935875,1768997438795,-500.0,0.00016705,2]
[402935876,1768997438803,-500.0,0.00016705,2]
[402935877,1768997438813,-500.0,0.00016705,2]
[402935878,1768997438822,-500.0,0.00016705,2]
[402935879,1768997438831,-500.0,0.00016705,2]
[402935880,1768997438842,-500.0,0.00016705,2]
[402935881,1768997438851,-500.0,0.00016705,2]
[402935882,1768997438860,-500.0,0.00016705,2]
[402935883,1768997438869,-500.0,0.00016705,2]
[402935884,1768997438878,-500.0,0.00016705,2]
[402935885,1768997438887,-500.0,0.00016705,2]
[402935886,1768997438896,-500.0,0.00016705,2]
[402935887,1768997438906,-500.0,0.00016705,2]
[402935888,1768997438915,-500.0,0.00016705,2]
[402935889,1768997438924,-500.0,0.00016705,2]
[402935891,1768997438934,-500.0,0.00016705,2]
[402935893,1768997438944,-500.0,0.00016705,2]
[402935895,1768997438953,-500.00000001,0.00016705,2]
[402935897,1768997438963,-500.0,0.00016705,2]
[402935899,1768997438972,-500.0,0.00016705,2]
[402935901,1768997438981,-500.0,0.00016705,2]
[402935903,1768997438991,-500.0,0.00016705,2]
[402935905,1768997439000,-500.0,0.00016705,2]
[402935907,1768997439010,-500.0,0.00016705,2]
[402935909,1768997439019,-500.0,0.00016705,2]
[402935911,1768997439028,-486.26946383,0.00016705,2]
[402935913,1768997439037,-500.0,0.00016705,2]
[402935915,1768997439046,-500.0,0.00016705,2]
[402935917,1768997439056,-500.0,0.00016705,2]
[402935919,1768997439065,-500.0,0.00016705,2]
[402935921,1768997439074,-500.0,0.00016705,2]
[402935923,1768997439083,-500.0,0.00016705,2]
[402935925,1768997439093,-500.0,0.00016705,2]
[402935927,1768997439101,-200.0,0.00016705,2]
[402935929,1768997439112,-500.0,0.00016705,2]
[402935931,1768997439121,-500.0,0.00016705,2]
[402935932,1768997439130,-500.0,0.00016705,2]
[402935934,1768997439139,-500.0,0.00016705,2]
[402935936,1768997439149,-500.0,0.00016706,2]
[402935938,1768997439158,-500.0,0.00016706,2]
[402935940,1768997439168,-500.0,0.00016706,2]
[402935942,1768997439178,-500.0,0.00016706,2]
[402935944,1768997439187,-416.0,0.00016706,2]
[402935946,1768997439197,-540.84751625,0.00016706,2]
[402935948,1768997439206,-489.99,0.00016706,2]
[402935950,1768997439216,-1031.07,0.00016706,2]
[402935952,1768997439230,-500.0,0.00016706,2]
[402935954,1768997439239,-510.66982026,0.00016706,2]
[402935956,1768997439249,-500.0,0.00016706,2]
[402935958,1768997439259,-204.33882503,0.00016727,2]
[402935960,1768997439270,-403.39467348,0.00016731,2]
[402935962,1768997439280,-322.6107,0.00016733,2]
[402935964,1768997439289,-250.0,0.00016733,2]
[402935966,1768997439302,-2000.0,0.00016733,2]
[402935968,1768997439312,-250.0,0.00016733,2]
[402935970,1768997439322,-2000.0,0.00016733,2]
[402935972,1768997439332,-226.36924572,0.00016733,2]
[402935974,1768997439345,-2000.0,0.00016733,2]
[402935976,1768997439355,-2000.0,0.00016733,2]
[402935978,1768997439366,-2000.0,0.00016733,2]
[402935980,1768997439376,-2000.0,0.00016733,2]
[402935982,1768997439386,-2000.0,0.00016733,2]
[402935984,1768997439396,-2000.0,0.00016733,2]
[402935986,1768997439405,-2000.0,0.00016733,2]
[402935988,1768997439414,-2000.0,0.00016733,2]
[402935990,1768997439423,-2000.0,0.00016733,2]
[402935992,1768997439432,-1000.0,0.00016733,2]
[402935993,1768997439442,-2000.0,0.00016733,2]
[402935995,1768997439451,-2000.0,0.00016733,2]
[402935998,1768997439461,-1000.0,0.00016733,2]
[402936000,1768997439472,-2000.0,0.00016733,2]
[402936002,1768997439483,-2000.0,0.00016733,2]
[402936003,1768997439492,-1000.0,0.00016733,2]
[402936006,1768997439502,-3002.70085788,0.00016733,2]
[402936007,1768997439511,-472.61250622,0.00016733,2]
[402936010,1768997439521,-2000.0,0.00016733,2]
[402936011,1768997439530,-1000.0,0.00016733,2]
[402936013,1768997439540,-2000.0,0.00016733,2]
[402936015,1768997439549,-151.0,0.00016733,2]
[402936017,1768997439559,-500.0,0.00016733,2]
[402936019,1768997439569,-2000.0,0.00016733,2]
[402936020,1768997439579,-2000.0,0.00016733,2]
[402936021,1768997439592,-2000.0,0.00016733,2]
[402936022,1768997439602,-2000.0,0.00016733,2]
[402936023,1768997439613,-151.0,0.00016733,2]
[402936024,1768997439623,-151.0,0.00016733,2]
[402936025,1768997439633,-151.0,0.00016733,2]
[402936026,1768997439642,-151.0,0.00016733,2]
[402936027,1768997439652,-151.0,0.00016733,2]
[402936028,1768997439662,-151.0,0.00016733,2]
[402936029,1768997439671,-500.0,0.00016733,2]
[402936030,1768997439681,-151.0,0.00016733,2]
[402936031,1768997439691,-151.0,0.00016733,2]
[402936032,1768997439700,-151.0,0.00016733,2]
[402936033,1768997439710,-151.0,0.00016733,2]
[402936034,1768997439720,-151.0,0.00016733,2]
[402936035,1768997439730,-151.0,0.00016733,2]
[402936036,1768997439740,-151.0,0.00016733,2]
[402936037,1768997439750,-656.0,0.00016736,2]
[402936038,1768997439760,-500.0,0.00016761,2]
[402936039,1768997439769,-500.0,0.00016761,2]
[402936040,1768997439779,-500.0,0.00016761,2]
[402936041,1768997439790,-500.0,0.00016761,2]
[402936042,1768997439800,-416.0,0.00016761,2]
[402936043,1768997439810,-1570.0,0.0001677,2]
[402936044,1768997439819,-7790.52933413,0.00016772,2]
[402936045,1768997439829,-13164.25701073,0.00016772,2]
[402936046,1768997439842,-500.0,0.00016773,2]
[402936047,1768997439852,-500.0,0.00016773,2]
[402936048,1768997439861,-500.0,0.00016773,2]
[402936049,1768997439871,-500.0,0.00016773,2]
[402936050,1768997439881,-500.0,0.00016773,2]
[402936051,1768997439891,-500.0,0.00016773,2]
[402936052,1768997439900,-251.0,0.00016803,2]
[402936053,1768997439910,-500.00000017,0.00016816,2]
[402936054,1768997439919,-500.0,0.00016816,2]
[402936056,1768997439929,-500.0,0.00016816,2]
[402936058,1768997439939,-500.0,0.00016816,2]
[402936059,1768997439948,-416.0,0.00016816,2]
[402936060,1768997439957,-600.0,0.00016837,2]
[402936061,1768997439966,-500.0,0.0001684,2]
[402936062,1768997439975,-151.0,0.00016854,2]
[402936063,1768997439986,-195.04713978,0.00016859,2]